{"text_format":"1","workbook":"xlsx","n_sheets":4,"sheets":["ввод","Вывод","автоматика","Спецификация"],"not_rendered":{"charts":0,"images":1,"macros":1,"external_links":2,"defined_names":35,"comments":0,"pivot_tables":0},"unopened":[],"bounds":{"document_bytes":16777216,"sheet_cells":100000,"rows_first":2000,"rows_last":500,"rows_between":2000,"halvings":0,"cell_chars":16384,"cell_head_chars":4096},"cells_cut":0,"cells_raw":0,"read":"whole","date_system":"1900"}

{"sheet":"ввод","index":0,"n_rows":15,"n_cols":47,"rows_kept":15,"cut":false,"hidden":false,"merged":[[0,0,0,2],[1,3,1,9],[2,3,2,9],[3,3,3,9],[4,3,4,9],[1,1,1,2],[2,1,2,2],[3,1,3,2],[4,1,4,2],[8,12,8,14],[3,19,3,21],[4,19,4,21],[5,19,5,21],[6,1,6,2],[6,3,6,9],[5,1,5,2],[5,3,5,9],[4,15,4,16],[1,15,1,16],[2,15,2,16],[6,15,6,16],[8,16,8,17],[1,17,1,18],[3,17,3,18],[4,17,4,18],[5,17,5,18],[6,17,6,18]]}
["https://yandex.ru/maps/?from=tabbar&ll=38.303332%2C55.191553&mode=routes&rtext=55.053732%2C38.873363&rtt=auto&ruri=ymapsbm1%3A%2F%2Fgeo%3Fll%3D38.873%252C55.054%26spn%3D0.001%252C0.001%26text%3D%25D0%25A0%25D0%25BE%25D1%2581%25D1%2581%25D0%25B8%25D1%258F%",null,null,null,null,null,null,null,null,null,null,null,null,null,null,null,null,null,null,null,null,null,null,null,null,null,null,null,null,null,null,null,null,null,"Самовывоз","Самовывоз (EXW) - г. Коломна."]
[null,"Заказчик",null,"Мпрайд, ООО",null,null,null,null,null,null,null,null,"Сумма КП с листа ВЫВОД:",null,null,"Всего поставка:",null,{"$f":"Вывод!N6","v":{"$error":"#REF!"}},null,null,null,null,null,null,null,null,null,null,null,null,null,null,null,null,"Доставка",{"$f":"\"Доставка до адреса (DDP)  - \"&D6","v":"Доставка до адреса (DDP)  - г. Москва, р-н Черемушки"}]
[null,"ФИО",null,"Александр",null,null,null,null,null,null,null,null,{"$f":"Вывод!N11","v":{"$error":"#REF!"}},null,null,"Скидка:",null,null,{"$f":"$AN$10","v":{"$error":"#REF!"}},null,null,null,null,null,null,null,null,null,null,null,null,null,null,null,"Доставка до терминала \"Деловые линии\"","Доставка до терминала ТК \"Деловые Линии\" (DAT) - г. Коломна."]
[null,"Телефон",null,"7 (926) 161-96-41",null,null,null,null,null,null,null,null,"Сумма спецификации:",null,null,"Итого со скидкой:",null,{"$f":"Вывод!N8","v":{"$error":"#REF!"}},null,"Ручной ввод"]
[null,"Email",null,"at@mpride.ru",null,null,null,null,null,null,null,null,{"$f":"Спецификация!I14","v":{"$error":"#REF!"}},null,null,"Доставка:",null,{"$f":"IF(T5<>0,T5,IF(AF5=2,AG5*IF(D7>100,IF(D7*70<10500,10500,D7*70)*1.1,IF(D7*70<10500,10500,D7*70)),0))","v":16170.000000000002},null,null,null,null,null,null,null,null,null,null,null,null,null,2,{"$f":"ROUNDUP((B9/3),0)","v":1}]
[null,"Адрес",null,"г. Москва, р-н Черемушки",null,null,null,null,null,null,null,null,null,null,null,"Монтаж:","Ночь:",{"$f":"IF(T6<>0,T6,IF(AF6=TRUE,SUM(V11:V15)*1.1,SUM(V11:V15)))","v":{"$error":"#REF!"}},null,null,null,null,null,null,null,null,null,null,null,null,null,false]
[null,"Расстояние",null,210,null,null,null,null,null,null,null,null,null,null,null,"Итог:",null,{"$f":"R4+R5+R6","v":{"$error":"#REF!"}}]
[]
[{"$f":"COUNTIF(B11:B9999,\">0\")-1","v":0},{"$f":"SUM(B11:B915)","v":1},null,null,null,null,null,null,"Всего за шторы:",null,null,null,"Всего за блоки:",null,null,null,"Всего за ДОП:",null,null,null,null,null,null,null,null,null,null,null,null,null,null,"Покраска","Ключ-Кнопка","GU-4","Общая скидка на изделие","Стоиомсть изделия со скидкой","Стоиомсть блока со скидкой","Стоиомсть ДОП всегда без скидки","Стоиомсть всего со скидкой","Всего Скидки",null,"N-AES","N-AES-PP","N-AES-T","N-AES-T-PP","SWM","GU4"]
["№","Кол во","Ширина","Высота","Покраска","RAL","Ширина","Высота","Тип шторы","Стоимость","Лазейка","Направляющие","Блок управления","Ключ\nкнопка","GU4","Стоимость блока","Лазейка","Кнопка+GU4","Направляющие",null,"S","Монтаж","EI60","EI90","EI120","EI120 с водой","EI120 с водой PREMIUM","E120 ДЗШ","лазейка","Рассчет ширины","Расчет Высоты",null,null,null,{"$f":"SUM(AI11:AI15)","v":{"$error":"#REF!"}},{"$error":"#REF!"},5000,0,{"$error":"#REF!"},{"$error":"#REF!"},null,{"$f":"SUM(AP11:AP915)","v":1},0,0,0,0,0]
[1,1,3500,3500,null,null,{"$f":"#REF!","v":{"$error":"#REF!"}},{"$f":"#REF!","v":{"$error":"#REF!"}},"FireTechnics-EI 60 (без орошения)",13,null,{"$f":"IF(#REF!=6,\"Нет\",\"\")","v":{"$error":"#REF!"}},"Блок управления N-AES","Нет","Нет",{"$f":"IF(M11<>0,VLOOKUP(M11,автоматика!$O$3:$S$6,5,0),0)","v":5000},{"$f":"IF(K11=\"Да\",15000,0)","v":0},{"$f":"IF(N11=\"Да\",3200,0)+IF(AH11=TRUE,ROUNDUP(B11/4,0)*2000/B11,0)","v":0},{"$f":"IF(AND(#REF!=6,ввод!L11=\"Да\"),ввод!D11*2*900/1000,0)","v":{"$error":"#REF!"}},null,{"$f":"C11*D11/1000000","v":12.25},{"$f":"IF(AND(#REF!=5,J11<>0),IF(U11<=40,65000*B11,IF(U11<=70,100000*B11,160000*B11)),IF(U11<=10,32000*B11,IF(U11<=20,36000*B11,42000*B11))-IF(#REF!=6,2000,0))","v":{"$error":"#REF!"}},123,{"$f":"IF(B11<>0,INDEX(Д2,MATCH(AE11,Высота3,0),MATCH(AD11,Ширина3,0))*IF(AF11=TRUE,1.12,1),0)","v":{"$error":"#REF!"}},{"$f":"IF(B11<>0,INDEX(Д3,MATCH(AE11,Высота3,0),MATCH(AD11,Ширина3,0))*IF(AF11=TRUE,1.12,1),0)","v":{"$error":"#REF!"}},{"$f":"IF(B11<>0,INDEX(Д4,MATCH(AE11,Высота4,0),MATCH(AD11,Ширина4,0))*IF(AF11=TRUE,1.12,1),0)","v":{"$error":"#REF!"}},{"$f":"IF(B11<>0,INDEX(Д5,MATCH(AE11,Высота5,0),MATCH(AD11,Ширина5,0))*IF(AF11=TRUE,1.12,1),0)","v":{"$error":"#REF!"}},{"$f":"IF(B11<>0,INDEX(Д6,MATCH(AE11,Высота6,0),MATCH(AD11,Ширина6,0))*IF(AF11=TRUE,1.12,1),0)","v":{"$error":"#REF!"}},{"$f":"IF(K11=\"Да\",15000,0)","v":0},{"$f":"IF(B11<>0,IF(C11/MROUND(C11,500)>1,MROUND(C11,500)+500,MROUND(C11,500)),0)","v":3500},{"$f":"IF(B11<>0,IF(D11/MROUND(D11,500)>1,MROUND(D11,500)+500,MROUND(D11,500)),0)","v":3500},{"$f":"IF(E11=\"Да\",TRUE,FALSE)","v":false},{"$f":"IF(N11=\"Да\",TRUE,FALSE)","v":false},{"$f":"IF(O11=\"Да\",TRUE,FALSE)","v":false},{"$f":"IF(B11<>0,(J11+S11+Q11)*$R$3,0)+IF(M11<>0,P11*$R$3,0)","v":{"$error":"#REF!"}},{"$f":"IF(B11<>0,J11+S11+Q11,0)*(1-$R$3)","v":{"$error":"#REF!"}},{"$f":"(IF(M11<>0,P11,0))*(1-$R$3)","v":5000},{"$f":"(IF(B11<>0,R11,0))","v":0},{"$f":"SUM(AJ11:AL11)*B11","v":{"$error":"#REF!"}},{"$f":"AI11*B11","v":{"$error":"#REF!"}},null,{"$f":"IF($M11=\"Блок управления N-AES\",$B11,0)","v":1},{"$f":"IF($M11=\"Блок управления N-AES-PP (с ИБП)\",$B11,0)","v":0},{"$f":"IF($M11=\"Блок управления N-AES-T\",$B11,0)","v":0},{"$f":"IF($M11=\"Блок управления N-AES-T-PP (с ИБП)\",$B11,0)","v":0},{"$f":"IF(N11=\"Да\",B11,0)","v":0},{"$f":"IF(AH11=TRUE,ROUNDUP(B11/4,0),0)","v":0}]
[2,null,null,null,null,null,null,null,null,{"$f":"IF(B12<>0,IF(#REF!=1,ввод!W12,IF(#REF!=2,ввод!X12,IF(#REF!=3,Y12,IF(#REF!=4,Z12,IF(#REF!=5,AA12,IF(#REF!=6,AB12,0)))))),0)","v":0},null,{"$f":"IF(#REF!=6,\"Нет\",\"\")","v":{"$error":"#REF!"}},null,null,null,{"$f":"IF(M12<>0,VLOOKUP(M12,автоматика!$O$3:$S$6,5,0),0)+IF(AH12=TRUE,ROUNDUP(B12/4,0)*2000,0)","v":0},{"$f":"IF(K12=\"Да\",15000,0)","v":0},{"$f":"IF(N12=\"Да\",3200,0)+IF(AH12=TRUE,ROUNDUP(B12/4,0)*2000,0)","v":0},{"$f":"IF(AND(#REF!=6,ввод!L12=\"Да\"),ввод!D12*2*900/1000,0)","v":{"$error":"#REF!"}},null,0,{"$f":"IF(AND(#REF!=5,J12<>0),IF(U12<=40,65000*B12,IF(U12<=70,100000*B12,160000*B12)),IF(U12<=10,32000*B12,IF(U12<=20,36000*B12,42000*B12))-IF(#REF!=6,2000,0))","v":{"$error":"#REF!"}},{"$f":"IF(B12<>0,INDEX(Д1,MATCH(AE12,Высота1,0),MATCH(AD12,Ширина1,0))*IF(AF12=TRUE,1.12,1),0)","v":0},0,0,0,0,0,0,0,0,{"$f":"IF(E12=\"Да\",TRUE,FALSE)","v":false},{"$f":"IF(N12=\"Да\",TRUE,FALSE)","v":false},{"$f":"IF(O12=\"Да\",TRUE,FALSE)","v":false},{"$f":"IF(B12<>0,(J12+S12+Q12)*$R$3,0)+IF(M12<>0,P12*$R$3,0)","v":0},{"$f":"IF(B12<>0,J12+S12+Q12,0)*(1-$R$3)","v":0},{"$f":"(IF(M12<>0,P12,0))*(1-$R$3)","v":0},{"$f":"(IF(B12<>0,R12,0))","v":0},{"$f":"SUM(AJ12:AL12)*B12","v":0},{"$f":"AI12*B12","v":0},null,{"$f":"IF($M12=\"Блок управления N-AES\",$B12,0)","v":0},{"$f":"IF($M12=\"Блок управления N-AES-PP (с ИБП)\",$B12,0)","v":0},{"$f":"IF($M12=\"Блок управления N-AES-T\",$B12,0)","v":0},{"$f":"IF($M12=\"Блок управления N-AES-T-PP (с ИБП)\",$B12,0)","v":0},{"$f":"IF(N12=\"Да\",B12,0)","v":0},{"$f":"IF(AH12=TRUE,ROUNDUP(B12/4,0),0)","v":0}]
[3,null,null,null,null,null,null,null,null,{"$f":"IF(B13<>0,IF(#REF!=1,ввод!W13,IF(#REF!=2,ввод!X13,IF(#REF!=3,Y13,IF(#REF!=4,Z13,IF(#REF!=5,AA13,IF(#REF!=6,AB13,0)))))),0)","v":0},null,{"$f":"IF(#REF!=6,\"Нет\",\"\")","v":{"$error":"#REF!"}},null,null,null,{"$f":"IF(M13<>0,VLOOKUP(M13,автоматика!$O$3:$S$6,5,0),0)+IF(AH13=TRUE,ROUNDUP(B13/4,0)*2000,0)","v":0},0,0,{"$f":"IF(AND(#REF!=6,ввод!L13=\"Да\"),ввод!D13*2*900/1000,0)","v":{"$error":"#REF!"}},null,0,{"$f":"IF(AND(#REF!=5,J13<>0),IF(U13<=40,65000*B13,IF(U13<=70,100000*B13,160000*B13)),IF(U13<=10,32000*B13,IF(U13<=20,36000*B13,42000*B13))-IF(#REF!=6,2000,0))","v":{"$error":"#REF!"}},0,0,0,0,0,0,0,0,0,false,false,false,0,0,0,0,0,0,null,0,0,0,0,0,0]
[4,null,null,null,null,null,null,null,null,{"$f":"IF(B14<>0,IF(#REF!=1,ввод!W14,IF(#REF!=2,ввод!X14,IF(#REF!=3,Y14,IF(#REF!=4,Z14,IF(#REF!=5,AA14,IF(#REF!=6,AB14,0)))))),0)","v":0},null,{"$f":"IF(#REF!=6,\"Нет\",\"\")","v":{"$error":"#REF!"}},null,null,null,{"$f":"IF(M14<>0,VLOOKUP(M14,автоматика!$O$3:$S$6,5,0),0)+IF(AH14=TRUE,ROUNDUP(B14/4,0)/B14*2000,0)","v":0},0,0,{"$f":"IF(AND(#REF!=6,ввод!L14=\"Да\"),ввод!D14*2*900/1000,0)","v":{"$error":"#REF!"}},null,0,{"$f":"IF(AND(#REF!=5,J14<>0),IF(U14<=40,65000*B14,IF(U14<=70,100000*B14,160000*B14)),IF(U14<=10,32000*B14,IF(U14<=20,36000*B14,42000*B14))-IF(#REF!=6,2000,0))","v":{"$error":"#REF!"}},0,0,0,0,0,0,0,0,0,false,false,false,0,0,0,0,0,0,null,0,0,0,0,0,0]
[5,null,null,null,null,null,null,null,null,{"$f":"IF(B15<>0,IF(#REF!=1,ввод!W15,IF(#REF!=2,ввод!X15,IF(#REF!=3,Y15,IF(#REF!=4,Z15,IF(#REF!=5,AA15,IF(#REF!=6,AB15,0)))))),0)","v":0},null,{"$f":"IF(#REF!=6,\"Нет\",\"\")","v":{"$error":"#REF!"}},null,null,null,{"$f":"IF(M15<>0,VLOOKUP(M15,автоматика!$O$3:$S$6,5,0),0)+IF(AH15=TRUE,ROUNDUP(B15/4,0)*2000,0)","v":0},0,0,{"$f":"IF(AND(#REF!=6,ввод!L15=\"Да\"),ввод!D15*2*900/1000,0)","v":{"$error":"#REF!"}},null,0,{"$f":"IF(AND(#REF!=5,J15<>0),IF(U15<=40,65000*B15,IF(U15<=70,100000*B15,160000*B15)),IF(U15<=10,32000*B15,IF(U15<=20,36000*B15,42000*B15))-IF(#REF!=6,2000,0))","v":{"$error":"#REF!"}},0,0,0,0,0,0,0,0,0,false,false,false,0,0,0,0,0,0,null,0,0,0,0,0,0]

{"sheet":"Вывод","index":1,"n_rows":11,"n_cols":14,"rows_kept":11,"cut":false,"hidden":false,"merged":[[5,13,5,14],[5,0,5,12],[0,4,1,4],[0,5,1,5],[0,0,1,0],[0,9,0,10],[0,2,1,2],[10,13,10,14],[10,0,10,12],[9,13,9,14],[1,9,1,10],[9,1,9,12],[7,6,7,12],[7,13,7,14],[6,13,6,14],[8,1,8,12],[0,6,1,6],[0,7,1,7],[0,13,0,14],[3,1,3,3],[1,13,1,14],[6,0,6,11],[8,13,8,14],[3,15,3,16],[3,13,3,14],[3,9,3,10],[0,16,1,16],[2,9,2,10],[2,13,2,14]]}
["№","Ширина проема",null,"Высота проема","м²","Поверхность","Наименование","Блок управления + Дополнительное оснащение","Кол-во,","Цена единицы",null,"Цена блока управления","Цена доп. оснащения","Общая сумма"]
[null,"мм",null,"мм",null,null,null,null,"шт.","Руб.",null,"Руб.","Руб.","Руб."]
[1,{"$f":"ввод!C11","v":3500},{"$f":"#REF!","v":{"$error":"#REF!"}},{"$f":"ввод!D11","v":3500},{"$f":"(B3*D3*I3)/1000000","v":{"$error":"#REF!"}},{"$f":"#REF!","v":{"$error":"#REF!"}},{"$f":"#REF!","v":{"$error":"#REF!"}},{"$f":"IF(I3<>0,\"- \"&VLOOKUP(ввод!M11,автоматика!$O$3:$T$6,6,0)&IF(ввод!AC11<>0,CHAR(10)&\"- Дверь лазейка 500х2000 мм.\",\"\")&IF(ввод!AG11=TRUE,CHAR(10)&\"- Двухпозиционная ключ-кнопка SWM\",\"\")&IF(ввод!AH11=TRUE,CHAR(10)&\"- Модуль группового управления GU-4.РМ - \"&ROUNDUP(I3/4,0)&\" шт.\",\"\")&IF(ввод!L11=\"Да\",CHAR(10)&\"- Направляющие для полотна\",\"\"),\"\")","v":{"$error":"#REF!"}},{"$f":"IF(#REF!,ввод!B11,0)","v":{"$error":"#REF!"}},{"$f":"IF(ввод!B11<>0,ввод!J11+ввод!Q11+ввод!S11,0)","v":{"$error":"#REF!"}},null,{"$f":"IF(I3<>0,ввод!P11,0)","v":{"$error":"#REF!"}},{"$f":"IF(I3<>0,ввод!Q11+ввод!R11+ввод!S11,0)","v":{"$error":"#REF!"}},{"$f":"SUM(J3:M3)*I3","v":{"$error":"#REF!"}}]
[null,"Общая площадь проёмов",null,null,{"$f":"SUM(E3:OFFSET(E4,-1,0))","v":{"$error":"#REF!"}},null,"Общее количество штор",null,{"$f":"SUM(I3:OFFSET(I4,-1,0))","v":{"$error":"#REF!"}}]
[]
["Общая сумма поставки, включая НДС 20%",null,null,null,null,null,null,null,null,null,null,null,null,{"$f":"SUM(N3:O4)","v":{"$error":"#REF!"}}]
["Скидка на изделия и блоки управления:",null,null,null,null,null,null,null,null,null,null,null,{"$f":"ввод!R3","v":0},{"$f":"ввод!$AN$10","v":{"$error":"#REF!"}}]
[null,null,null,null,null,null,"Общая сумма поставки, со скидкой, включая НДС 20%",null,null,null,null,null,null,{"$f":"N6-N7","v":{"$error":"#REF!"}}]
[{"$f":"OFFSET(A9,-6,0)+1","v":2},{"$f":"IF(ввод!AF5=1,ввод!AJ1,IF(ввод!AF5=2,ввод!AJ2,ввод!AJ3))","v":"Доставка до адреса (DDP)  - г. Москва, р-н Черемушки"},null,null,null,null,null,null,null,null,null,null,null,{"$f":"IF(ввод!$T$5=0,ввод!$R$5,ввод!$T$5)","v":16170.000000000002}]
[{"$f":"OFFSET(A10,-1,0)+1","v":3},"Монтаж и ПНР штор на объекте Заказчика",null,null,null,null,null,null,null,null,null,null,null,{"$f":"IF(ввод!$T$6=0,ввод!$R$6,ввод!$T$6)","v":{"$error":"#REF!"}}]
["Итоговая сумма предложения, включая НДС 20%",null,null,null,null,null,null,null,null,null,null,null,null,{"$f":"N8+N9+N10","v":{"$error":"#REF!"}}]

{"sheet":"автоматика","index":2,"n_rows":29,"n_cols":21,"rows_kept":29,"cut":false,"hidden":true,"merged":[]}
[null,null,null,null,null,null,null,null,1,2,3,4,5,6,7,0.08,9,10,11]
[null,null,null,null,null,null,null,null,null,null,"дилер","розница","вывод"]
[null,1,null,null,null,null,null,1,"Блок управления N-AES (необходимо наличие на объекте 1-ой категории электропитания)",null,5000,5000,5000,null,"Блок управления N-AES",null,null,null,5000,{"$f":"I3","v":"Блок управления N-AES (необходимо наличие на объекте 1-ой категории электропитания)"},"Блок управления N-AES (децимальный номер ФАТЕ.954786.014)"]
[null,null,null,null,null,null,null,2,"Блок управления N-AES-T (необходимо наличие на объекте 1-ой категории электропитания)",null,6800,6800,{"$f":"IF(#REF!,L4,K4)","v":{"$error":"#REF!"}},null,"Блок управления N-AES-PP (с ИБП)",null,null,null,14000,{"$f":"I5","v":"Блок управления N-AES-PP (встроен ИБП, не требует наличие 1-ой категории электропитания)"},"Блок управления N-AES-PP (децимальный номер ФАТЕ.954786.017)"]
[null,null,null,null,null,null,null,3,"Блок управления N-AES-PP (встроен ИБП, не требует наличие 1-ой категории электропитания)",null,14000,14000,{"$f":"IF(#REF!,L5,K5)","v":{"$error":"#REF!"}},null,"Блок управления N-AES-T",null,null,null,6800,{"$f":"I4","v":"Блок управления N-AES-T (необходимо наличие на объекте 1-ой категории электропитания)"},"Блок управления N-AES-T (децимальный номер ФАТЕ.954786.025)"]
[null,null,null,null,null,null,null,4,"Блок управления N-AES-T-PP (встроен ИБП, не требует наличие 1-ой категории электропитания)",null,15000,15000,{"$f":"IF(#REF!,L6,K6)","v":{"$error":"#REF!"}},null,"Блок управления N-AES-T-PP (с ИБП)",null,null,null,15000,{"$f":"I6","v":"Блок управления N-AES-T-PP (встроен ИБП, не требует наличие 1-ой категории электропитания)"},"Блок управления N-AES-T-PP (децимальный номер ФАТЕ.954786.028)"]
[null,null,null,null,null,null,null,5,null,null,15000,15000,{"$f":"IF(#REF!,L7,K7)","v":{"$error":"#REF!"}}]
[null,null,null,null,null,null,null,6,"Дверь-лазейка",null,3200,3200,3200,null,null,null,null,null,"Список3","Список4","Список6"]
[null,null,null,null,null,null,null,7,"Двухпозиционная ключ-кнопка SWM",null,700,700,700,null,null,null,null,null,"Да","Нельзя","Да"]
[null,null,null,null,null,null,null,8,"Извещатель пожарный ручной ИПР-3СУ",null,null,null,{"$f":"IF(#REF!,L10,K10)","v":{"$error":"#REF!"}},null,null,null,null,null,"Нет"]
[null,null,null,null,null,null,null,9,null,null,null,null,{"$f":"IF(#REF!,L11,K11)","v":{"$error":"#REF!"}}]
[null,null,null,null,null,null,null,10,null,null,null,null,{"$f":"IF(#REF!,L12,K12)","v":{"$error":"#REF!"}}]
[null,null,null,null,null,null,null,12,null,null,null,null,{"$f":"IF(#REF!,L13,K13)","v":{"$error":"#REF!"}}]
[null,null,null,null,null,null,null,13,null,null,null,null,{"$f":"IF(#REF!,L14,K14)","v":{"$error":"#REF!"}}]
[null,null,null,null,null,null,null,14,null,null,null,null,{"$f":"IF(#REF!,L15,K15)","v":{"$error":"#REF!"}},null,1,"Рулонные противопожарные ворота (Шторы) торговой марки \"FireTechnics\" модели \"FireTechnics-EI60\", с полотном из негорючих материалов. Предел огнестойкости EI60 (без орошения)","Рулонные противопожарные ворота (Шторы) торговой марки \"FireTechnics\" модели \"FireTechnics-EI60\", с полотном из негорючих материалов. Предел огнестойкости EI60 (без орошения)"]
[null,null,null,null,null,null,null,15,null,null,null,null,{"$f":"IF(#REF!,L16,K16)","v":{"$error":"#REF!"}},null,2,"Противопожарная автоматическая преграда (штора, экран, занавес) системы \"FireTechnics-EI90\". Предел огнестойкости EI 90 (без орошения)","Противопожарная автоматическая преграда (штора, экран, занавес) системы \"FireTechnics-EI90\". Предел огнестойкости EI 90 (без орошения)"]
[null,null,null,null,null,null,null,16,null,null,null,null,{"$f":"IF(#REF!,L17,K17)","v":{"$error":"#REF!"}},null,3,"Противопожарная автоматическая преграда (штора, экран, занавес) системы \"FireTechnics-EI120\". Предел огнестойкости EI 120 (без орошения)","Противопожарная автоматическая преграда (штора, экран, занавес) системы \"FireTechnics-EI120\". Предел огнестойкости EI 120 (без орошения)"]
[null,null,null,null,null,null,null,17,null,null,null,null,null,null,4,"Противопожарная автоматическая штора (экран, занавес) системы \"Fireshield\" без дверь-лазейки, с односторонним использованием водяного орошения от существующих спринклерных или дренчерных систем пожаротушения здания (расход воды не менее 0,08 л/м.кв в сек). Предел огнестойкости EI 120","Противопожарная автоматическая штора (экран, занавес) системы \"Fireshield\", с дверью-лазейкой, с односторонним использованием водяного орошения от существующих спринклерных или дренчерных систем пожаротушения здания (расход воды не менее 0,08 л/м.кв в сек). Предел огнестойкости EI 120"]
[null,null,null,null,null,null,null,18,null,null,null,null,{"$f":"IF(#REF!,L19,K19)","v":{"$error":"#REF!"}},null,5,"Противопожарная автоматическая штора (экран, занавес) системы \"Fireshield\" без двери-лазейки, с односторонним использованием водяного орошения от существующих спринклерных или дренчерных систем пожаротушения здания (расход воды не менее 0,08 л/м.кв в сек). Предел огнестойкости EI 120","Противопожарная автоматическая штора (экран, занавес) системы \"Fireshield\", с дверью-лазейкой, с односторонним использованием водяного орошения от существующих спринклерных или дренчерных систем пожаротушения здания (расход воды не менее 0,08 л/м.кв в сек). Предел огнестойкости EI 120"]
[null,null,null,null,null,null,null,19,null,null,null,null,{"$f":"IF(#REF!,L20,K20)","v":{"$error":"#REF!"}},null,6,"Дымозащитная автоматическая штора (экран, занавес) типа \"Fireshield\", без направляющих. Предел огнестойкости E 120","Дымозащитная автоматическая штора (экран, занавес) типа \"Fireshield\", с направляющими. Предел огнестойкости E 120"]
[null,null,null,null,null,null,null,20,null,null,null,null,{"$f":"IF(#REF!,L21,K21)","v":{"$error":"#REF!"}}]
[null,null,null,null,null,null,null,21,null,null,null,null,{"$f":"IF(#REF!,L22,K22)","v":{"$error":"#REF!"}}]
[null,null,null,null,null,null,null,22,null,null,null,null,{"$f":"IF(#REF!,L23,K23)","v":{"$error":"#REF!"}}]
[null,null,null,null,null,null,null,23,null,null,null,null,{"$f":"IF(#REF!,L24,K24)","v":{"$error":"#REF!"}}]
[null,null,null,null,null,null,null,24,null,null,null,null,{"$f":"IF(#REF!,L25,K25)","v":{"$error":"#REF!"}}]
[]
[]
[null,null,null,null,null,null,null,null,null,null,"дилер","розница","вывод"]
[null,null,null,null,null,null,null,25,"Дверь-лазейка",null,15000,15000,{"$f":"IF([2]техническая!$E$51,L29,K29)","v":15000}]

{"sheet":"Спецификация","index":3,"n_rows":15,"n_cols":12,"rows_kept":15,"cut":false,"hidden":false,"merged":[[13,3,13,7],[14,3,14,7],[4,0,4,1],[5,0,5,1]]}
[]
[]
[null,null,null,"№ п/п","Наименование Изделий, работ","Единица измерения","Кол-во","Цена, руб., в т.ч. НДС 20%","Общая стоимость, руб., с учетом НДС 20%",null,"НДС","НДС общий"]
[null,null,null,1,{"$f":"IF(OR(ввод!K11=\"Да\",ввод!L11=\"Да\"),VLOOKUP(#REF!,автоматика!$O$15:$S$20,3,0),VLOOKUP(#REF!,автоматика!$O$15:$S$20,2,0))&\".\"&CHAR(10)&\"Размер проёма: \"&ввод!C11&\"x\"&ввод!D11&\" (ШхВ, мм.)\"&CHAR(10)&#REF!&\".\"","v":{"$error":"#REF!"}},"Шт.",{"$f":"ввод!B11","v":1},{"$f":"ввод!AJ11","v":{"$error":"#REF!"}},{"$f":"H4*G4","v":{"$error":"#REF!"}},null,{"$f":"ввод!AJ11/120*20","v":{"$error":"#REF!"}},{"$f":"G4*K4","v":{"$error":"#REF!"}}]
["Вставить необходимое кол-во ячекк и протянуть всю строчку",null,null,null,"Блок управления N-AES (децимальный номер ФАТЕ.954786.014)","Шт.",{"$f":"ввод!$AP$10","v":1},{"$f":"5000*(1-ввод!$R$3)","v":5000},{"$f":"H5*G5","v":5000},null,{"$f":"H5/120*20","v":833.33333333333326},{"$f":"G5*K5","v":833.33333333333326}]
["Удалить нулевые строчки ",null,null,null,"Блок управления N-AES-PP (децимальный номер ФАТЕ.954786.017)","Шт.",{"$f":"ввод!$AQ$10","v":0},{"$f":"14000*(1-ввод!$R$3)","v":14000},0,null,{"$f":"H6/120*20","v":2333.3333333333335},0]
[null,null,null,null,"Блок управления N-AES-T (децимальный номер ФАТЕ.954786.025)","Шт.",{"$f":"ввод!$AR$10","v":0},{"$f":"6800*(1-ввод!$R$3)","v":6800},0,null,1133.3333333333333,0]
[null,null,null,null,"Блок управления N-AES-T-PP (децимальный номер ФАТЕ.954786.028)","Шт.",{"$f":"ввод!$AS$10","v":0},{"$f":"15000*(1-ввод!$R$3)","v":15000},0,null,2500,0]
[null,null,null,null,"Двухпозиционная ключ-кнопка SWM","Шт.",{"$f":"ввод!$AT$10","v":0},{"$f":"3200","v":3200},{"$f":"H9*G9","v":0},null,{"$f":"H9/120*20","v":533.33333333333337},{"$f":"G9*K9","v":0}]
[null,null,null,null,"Модуль группового управления GU-4.РМ","Шт.",{"$f":"ввод!$AU$10","v":0},{"$f":"2000","v":2000},0,null,333.33333333333337,0]
[null,null,null,null,"Доставка до Объекта","Шт.",1,{"$f":"ввод!$R$5","v":16170.000000000002},{"$f":"H11*G11","v":16170.000000000002},null,2695.0000000000005,2695.0000000000005]
[null,null,null,null,"Монтажные работы","Шт.",{"$f":"ввод!$B$9","v":1},{"$f":"ввод!$R$6/ввод!$B$9*0.95","v":{"$error":"#REF!"}},{"$f":"H12*G12","v":{"$error":"#REF!"}},null,{"$error":"#REF!"},{"$error":"#REF!"}]
[null,null,null,null,"Пусконаладка","Шт.",{"$f":"ввод!$B$9","v":1},{"$f":"ввод!$R$6/ввод!$B$9*0.05","v":{"$error":"#REF!"}},{"$f":"H13*G13","v":{"$error":"#REF!"}},null,{"$error":"#REF!"},{"$error":"#REF!"}]
[null,null,null,"                                                                                            Итого:",null,null,null,null,{"$f":"SUM(I4:I13)","v":{"$error":"#REF!"}}]
[null,null,null,"В том числе НДС 20%:",null,null,null,null,{"$f":"SUM(L4:L14)","v":{"$error":"#REF!"}}]